fUSD/lending_fUSD_20260514
["ID","MTS","AMOUNT","RATE_DAILY","PERIOD"]
[422247165,1778763054000,-151.0,0.00024658,2]
[422247198,1778763054000,-1097.0,0.00024658,2]
[422247200,1778763054000,-1097.0,0.00024658,2]
[422247227,1778763054000,-48526.65785467,0.00025,7]
[422247195,1778763054000,-1097.0,0.00024658,2]
[422247171,1778763054000,-151.0,0.00024658,2]
[422247166,1778763054000,-151.0,0.00024658,2]
[422247172,1778763054000,-151.0,0.00024658,2]
[422247169,1778763054000,-151.0,0.00024658,2]
[422247168,1778763054000,-151.0,0.00024658,2]
[422247175,1778763054000,-151.0,0.00024658,2]
[422247178,1778763054000,-171.972692,0.00024658,2]
[422247174,1778763054000,-151.0,0.00024658,2]
[422247197,1778763054000,-1097.0,0.00024658,2]
[422247176,1778763054000,-151.0,0.00024658,2]
[422247179,1778763054000,-1042.56,0.00024658,2]
[422247180,1778763054000,-460.205785,0.00024658,2]
[422247182,1778763054000,-460.205785,0.00024658,2]
[422247177,1778763054000,-151.0,0.00024658,2]
[422247183,1778763054000,-460.205785,0.00024658,2]
[422247193,1778763054000,-500.0,0.00024658,2]
[422247184,1778763054000,-460.205785,0.00024658,2]
[422247194,1778763054000,-1097.0,0.00024658,2]
[422247192,1778763054000,-1097.0,0.00024658,2]
[422247196,1778763054000,-1097.0,0.00024658,2]
[422247191,1778763054000,-1097.0,0.00024658,2]
[422247186,1778763054000,-460.205785,0.00024658,2]
[422247189,1778763054000,-460.205785,0.00024658,2]
[422247187,1778763054000,-460.205785,0.00024658,2]
[422247188,1778763054000,-460.205785,0.00024658,2]
[422247185,1778763054000,-460.205785,0.00024658,2]
[422247181,1778763054000,-460.205785,0.00024658,2]
[422247226,1778763054000,-3081.98634612,0.00025,2]
[422247267,1778763055000,-569.61,0.00026027,2]
[422247265,1778763055000,-208.3309892,0.00026,7]
[422247264,1778763055000,-8018.0,0.00026,7]
[422247260,1778763055000,-4580.28689853,0.00026,2]
[422247259,1778763055000,-524.63,0.00025999,4]
[422247270,1778763055000,-1089.9,0.00026027,2]
[422247266,1778763055000,-214.95940296,0.00026,7]
[422247261,1778763055000,-219.21786923,0.00026,2]
[422247262,1778763055000,-7078.40236706,0.00026,2]
[422247263,1778763055000,-550.0,0.00026,2]
[422247269,1778763055000,-1385.84,0.00026027,2]
[422247282,1778763055000,-300.0,0.00026027,2]
[422247272,1778763055000,-570.01,0.00026027,2]
[422247271,1778763055000,-2035.19,0.00026027,2]
[422247277,1778763055000,-332.0,0.00026027,2]
[422247276,1778763055000,-400.0,0.00026027,2]
[422247275,1778763055000,-400.0,0.00026027,2]
[422247273,1778763055000,-1386.41,0.00026027,2]
[422247274,1778763055000,-1088.3,0.00026027,2]
[422247279,1778763055000,-200.0,0.00026027,2]
[422247278,1778763055000,-200.0,0.00026027,2]
[422247281,1778763055000,-300.0,0.00026027,2]
[422247291,1778763055000,-1089.9,0.00026055,7]
[422247280,1778763055000,-154.0,0.00026027,2]
[422247253,1778763055000,-7078.40236706,0.000258,2]
[422247268,1778763055000,-2037.96,0.00026027,2]
[422247254,1778763055000,-40277.62527484,0.0002589,5]
[422247242,1778763055000,-152.0,0.0002547,8]
[422247256,1778763055000,-608.47978224,0.0002599,2]
[422247288,1778763055000,-569.61,0.00026055,7]
[422247232,1778763055000,-160.0,0.00025,7]
[422247233,1778763055000,-7078.40236706,0.00025,2]
[422247228,1778763055000,-2127.06986416,0.00025,2]
[422247229,1778763055000,-208.3309892,0.00025,30]
[422247230,1778763055000,-208.3309892,0.00025,7]
[422247231,1778763055000,-214.95940296,0.00025,7]
[422247235,1778763055000,-7078.40236706,0.000253,2]
[422247236,1778763055000,-353.25828545,0.00025342,2]
[422247234,1778763055000,-1000.0,0.00025,7]
[422247245,1778763055000,-594.0,0.00025521,3]
[422247246,1778763055000,-150.0,0.00025565,2]
[422247249,1778763055000,-8018.0,0.000257,7]
[422247237,1778763055000,-169.09,0.00025363,2]
[422247238,1778763055000,-270.86847899,0.00025397,2]
[422247244,1778763055000,-7078.40236706,0.000255,2]
[422247240,1778763055000,-150.77376166,0.00025397,2]
[422247243,1778763055000,-1456.16577332,0.000255,2]
[422247239,1778763055000,-226.8130531,0.00025397,2]
[422247248,1778763055000,-193.37729893,0.00025681,21]
[422247258,1778763055000,-500.0,0.00025999,4]
[422247247,1778763055000,-687.89,0.00025644,2]
[422247252,1778763055000,-208.3309892,0.000258,7]
[422247257,1778763055000,-500.0,0.00025999,4]
[422247251,1778763055000,-214.95940296,0.000258,7]
[422247255,1778763055000,-974.3328105,0.0002597,2]
[422247241,1778763055000,-284.22,0.000254,7]
[422247286,1778763055000,-193.0,0.00026027,2]
[422247250,1778763055000,-18047.92,0.00025792,7]
[422247284,1778763055000,-200.0,0.00026027,2]
[422247319,1778763055000,-570.01,0.00026142,7]
[422247315,1778763055000,-2037.96,0.00026142,7]
[422247324,1778763055000,-1385.84,0.00026171,7]
[422247320,1778763055000,-1386.41,0.00026142,7]
[422247325,1778763055000,-1089.9,0.00026171,7]
[422247323,1778763055000,-2037.96,0.00026171,7]
[422247326,1778763055000,-2035.19,0.00026171,7]
[422247318,1778763055000,-2035.19,0.00026142,7]
[422247321,1778763055000,-1088.3,0.00026142,7]
[422247338,1778763055000,-1088.3,0.000262,2]
[422247333,1778763055000,-1385.84,0.000262,2]
[422247331,1778763055000,-569.61,0.000262,2]
[422247332,1778763055000,-2037.96,0.000262,2]
[422247337,1778763055000,-1386.41,0.000262,2]
[422247328,1778763055000,-1386.41,0.00026171,7]
[422247335,1778763055000,-2035.19,0.000262,2]
[422247330,1778763055000,-152.0,0.000262,9]
[422247327,1778763055000,-570.01,0.00026171,30]
[422247336,1778763055000,-570.01,0.000262,2]
[422247329,1778763055000,-1088.3,0.00026171,7]
[422247339,1778763055000,-569.61,0.00026229,7]
[422247340,1778763055000,-2037.96,0.00026229,7]
[422247343,1778763055000,-2035.19,0.00026229,7]
[422247341,1778763055000,-1385.84,0.00026229,7]
[422247342,1778763055000,-1089.9,0.00026229,7]
[422247322,1778763055000,-569.61,0.00026171,30]
[422247316,1778763055000,-1385.84,0.00026142,7]
[422247334,1778763055000,-1089.9,0.000262,2]
[422247313,1778763055000,-1088.3,0.00026113,2]
[422247317,1778763055000,-1089.9,0.00026142,7]
[422247285,1778763055000,-200.0,0.00026027,2]
[422247287,1778763055000,-500.0,0.00026028,2]
[422247289,1778763055000,-2037.96,0.00026055,7]
[422247290,1778763055000,-1385.84,0.00026055,7]
[422247292,1778763055000,-2035.19,0.00026055,7]
[422247293,1778763055000,-570.01,0.00026055,7]
[422247302,1778763055000,-2035.19,0.00026084,2]
[422247294,1778763055000,-1386.41,0.00026055,7]
[422247301,1778763055000,-1089.9,0.00026084,2]
[422247296,1778763055000,-1000.0,0.00026058,2]
[422247299,1778763055000,-2037.96,0.00026084,2]
[422247297,1778763055000,-594.0,0.00026082,3]
[422247283,1778763055000,-270.0,0.00026027,2]
[422247298,1778763055000,-569.61,0.00026084,30]
[422247314,1778763055000,-569.61,0.00026142,7]
[422247295,1778763055000,-1088.3,0.00026055,7]
[422247312,1778763055000,-1386.41,0.00026113,2]
[422247311,1778763055000,-570.01,0.00026113,2]
[422247309,1778763055000,-1089.9,0.00026113,2]
[422247310,1778763055000,-2035.19,0.00026113,2]
[422247304,1778763055000,-1386.41,0.00026084,2]
[422247308,1778763055000,-1385.84,0.00026113,2]
[422247307,1778763055000,-2037.96,0.00026113,2]
[422247306,1778763055000,-569.61,0.00026113,2]
[422247303,1778763055000,-570.01,0.00026084,30]
[422247300,1778763055000,-1385.84,0.00026084,2]
[422247305,1778763055000,-1088.3,0.00026084,2]
[422247370,1778763056000,-570.01,0.00026315,7]
[422247365,1778763056000,-569.61,0.00026315,7]
[422247368,1778763056000,-1089.9,0.00026315,7]
[422247367,1778763056000,-1385.84,0.00026315,7]
[422247364,1778763056000,-7078.40236706,0.000263,2]
[422247366,1778763056000,-2037.96,0.00026315,7]
[422247369,1778763056000,-2035.19,0.00026315,7]
[422247374,1778763056000,-2037.96,0.00026344,7]
[422247371,1778763056000,-1386.41,0.00026315,7]
[422247373,1778763056000,-569.61,0.00026344,30]
[422247375,1778763056000,-1385.84,0.00026344,7]
[422247363,1778763056000,-2560.3,0.00026296,2]
[422247376,1778763056000,-1089.9,0.00026344,7]
[422247377,1778763056000,-2035.19,0.00026344,7]
[422247381,1778763056000,-353.25828545,0.0002637,2]
[422247372,1778763056000,-1088.3,0.00026315,7]
[422247361,1778763056000,-1386.41,0.00026286,2]
[422247354,1778763056000,-1088.3,0.00026257,2]
[422247359,1778763056000,-2035.19,0.00026286,2]
[422247380,1778763056000,-1088.3,0.00026344,7]
[422247350,1778763056000,-1089.9,0.00026257,2]
[422247346,1778763056000,-1088.3,0.00026229,7]
[422247348,1778763056000,-2037.96,0.00026257,2]
[422247345,1778763056000,-1386.41,0.00026229,7]
[422247349,1778763056000,-1385.84,0.00026257,2]
[422247347,1778763056000,-569.61,0.00026257,30]
[422247352,1778763056000,-570.01,0.00026257,30]
[422247362,1778763056000,-1088.3,0.00026286,2]
[422247353,1778763056000,-1386.41,0.00026257,2]
[422247351,1778763056000,-2035.19,0.00026257,2]
[422247355,1778763056000,-569.61,0.00026286,2]
[422247356,1778763056000,-2037.96,0.00026286,2]
[422247357,1778763056000,-1385.84,0.00026286,2]
[422247360,1778763056000,-570.01,0.00026286,2]
[422247358,1778763056000,-1089.9,0.00026286,2]
[422247344,1778763056000,-570.01,0.00026229,7]
[422247379,1778763056000,-1386.41,0.00026344,7]
[422247382,1778763056000,-569.61,0.00026373,2]
[422247404,1778763056000,-304.6151138,0.00026397,2]
[422247402,1778763056000,-289.17137536,0.00026397,2]
[422247403,1778763056000,-278.54711706,0.00026397,2]
[422247406,1778763056000,-343.220121,0.00026397,2]
[422247405,1778763056000,-309.6664255,0.00026397,2]
[422247407,1778763056000,-318.61847682,0.00026397,2]
[422247408,1778763056000,-294.85941206,0.00026397,2]
[422247409,1778763056000,-297.8998569,0.00026397,2]
[422247411,1778763056000,-27842.42598083,0.000264,2]
[422247410,1778763056000,-290.80926346,0.00026397,2]
[422247412,1778763056000,-569.61,0.00026402,7]
[422247413,1778763056000,-2037.96,0.00026402,7]
[422247415,1778763056000,-1089.9,0.00026402,7]
[422247416,1778763056000,-2035.19,0.00026402,7]
[422247378,1778763056000,-570.01,0.00026344,30]
[422247399,1778763056000,-324.7268274,0.00026397,2]
[422247400,1778763056000,-338.11138606,0.00026397,2]
[422247414,1778763056000,-1385.84,0.00026402,7]
[422247396,1778763056000,-276.9557212,0.00026397,2]
[422247385,1778763056000,-1089.9,0.00026373,2]
[422247401,1778763056000,-336.90017278,0.00026397,2]
[422247388,1778763056000,-1386.41,0.00026373,2]
[422247383,1778763056000,-2037.96,0.00026373,2]
[422247384,1778763056000,-1385.84,0.00026373,2]
[422247387,1778763056000,-570.01,0.00026373,2]
[422247389,1778763056000,-1088.3,0.00026373,2]
[422247386,1778763056000,-2035.19,0.00026373,2]
[422247393,1778763056000,-150.77376166,0.00026397,2]
[422247390,1778763056000,-200.0,0.0002639,7]
[422247394,1778763056000,-302.547619,0.00026397,2]
[422247397,1778763056000,-314.15952412,0.00026397,2]
[422247395,1778763056000,-257.7493221,0.00026397,2]
[422247391,1778763056000,-270.86847899,0.00026397,2]
[422247392,1778763056000,-226.8130531,0.00026397,2]
[422247398,1778763056000,-325.218351,0.00026397,2]
[422247452,1778763057000,-570.01,0.00026517,30]
[422247450,1778763057000,-1089.9,0.00026517,7]
[422247453,1778763057000,-1386.41,0.00026517,7]
[422247454,1778763057000,-1088.3,0.00026517,7]
[422247447,1778763057000,-569.61,0.00026517,30]
[422247446,1778763057000,-7078.40236706,0.000265,2]
[422247448,1778763057000,-2037.96,0.00026517,7]
[422247444,1778763057000,-499.73797022,0.00026494,2]
[422247451,1778763057000,-2035.19,0.00026517,7]
[422247455,1778763057000,-569.61,0.00026546,2]
[422247449,1778763057000,-1385.84,0.00026517,7]
[422247458,1778763057000,-1089.9,0.00026546,2]
[422247461,1778763057000,-1386.41,0.00026546,2]
[422247457,1778763057000,-1385.84,0.00026546,2]
[422247468,1778763057000,-569.71,0.00026575,7]
[422247462,1778763057000,-1088.3,0.00026546,2]
[422247460,1778763057000,-570.01,0.00026546,2]
[422247463,1778763057000,-1426.26891256,0.00026554,2]
[422247467,1778763057000,-1094.38,0.00026575,7]
[422247465,1778763057000,-252.07275904,0.00026575,2]
[422247464,1778763057000,-151.28305713,0.00026575,2]
[422247466,1778763057000,-1386.76,0.00026575,7]
[422247475,1778763057000,-1088.44,0.00026575,7]
[422247479,1778763057000,-202.01375838,0.0002679,7]
[422247456,1778763057000,-2037.96,0.00026546,2]
[422247459,1778763057000,-2035.19,0.00026546,2]
[422247445,1778763057000,-1000.0,0.00026499,2]
[422247428,1778763057000,-569.61,0.00026459,2]
[422247442,1778763057000,-1386.41,0.00026488,7]
[422247478,1778763057000,-594.0,0.00026644,4]
[422247417,1778763057000,-570.01,0.00026402,7]
[422247418,1778763057000,-1386.41,0.00026402,7]
[422247419,1778763057000,-1088.3,0.00026402,7]
[422247421,1778763057000,-2037.96,0.00026431,2]
[422247420,1778763057000,-569.61,0.00026431,30]
[422247422,1778763057000,-1385.84,0.00026431,2]
[422247423,1778763057000,-1089.9,0.00026431,2]
[422247425,1778763057000,-570.01,0.00026431,30]
[422247426,1778763057000,-1386.41,0.00026431,2]
[422247427,1778763057000,-1088.3,0.00026431,2]
[422247429,1778763057000,-2037.96,0.00026459,2]
[422247432,1778763057000,-2035.19,0.00026459,2]
[422247430,1778763057000,-1385.84,0.00026459,2]
[422247431,1778763057000,-1089.9,0.00026459,2]
[422247424,1778763057000,-2035.19,0.00026431,2]
[422247433,1778763057000,-570.01,0.00026459,2]
[422247435,1778763057000,-1088.3,0.00026459,2]
[422247436,1778763057000,-569.61,0.00026488,7]
[422247440,1778763057000,-2035.19,0.00026488,7]
[422247441,1778763057000,-570.01,0.00026488,7]
[422247434,1778763057000,-1386.41,0.00026459,2]
[422247437,1778763057000,-2037.96,0.00026488,7]
[422247438,1778763057000,-1385.84,0.00026488,7]
[422247439,1778763057000,-1089.9,0.00026488,7]
[422247443,1778763057000,-1088.3,0.00026488,7]
[422247477,1778763057000,-1000.0,0.0002661,2]
[422247476,1778763057000,-200.0,0.0002659,7]
[422247469,1778763057000,-2038.05,0.00026575,7]
[422247515,1778763057000,-163.07965966,0.00027397,7]
[422247512,1778763057000,-2397.42,0.00027397,30]
[422247514,1778763057000,-197.28266727,0.00027397,7]
[422247513,1778763057000,-463.27486091,0.00027397,2]
[422247504,1778763057000,-1077.82,0.00027357,2]
[422247506,1778763057000,-200.0,0.0002739,7]
[422247507,1778763057000,-200.0,0.0002739,7]
[422247510,1778763057000,-500.0,0.0002739,5]
[422247509,1778763057000,-500.0,0.0002739,5]
[422247508,1778763057000,-201.84607568,0.0002739,7]
[422247511,1778763057000,-500.0,0.0002739,20]
[422247516,1778763057000,-180.57898599,0.00027397,7]
[422247526,1778763057000,-1500.0,0.00027397,2]
[422247525,1778763057000,-2000.0,0.00027397,7]
[422247527,1778763057000,-2000.0,0.00027397,7]
[422247524,1778763057000,-20000.0,0.00027397,5]
[422247523,1778763057000,-200.0,0.00027397,2]
[422247528,1778763057000,-2000.0,0.00027397,7]
[422247521,1778763057000,-200.0,0.00027397,2]
[422247517,1778763057000,-151.20870207,0.00027397,7]
[422247522,1778763057000,-200.0,0.00027397,2]
[422247519,1778763057000,-200.0,0.00027397,2]
[422247520,1778763057000,-268.48045955,0.00027397,2]
[422247518,1778763057000,-1343.19200131,0.00027397,2]
[422247529,1778763057000,-2000.0,0.00027397,7]
[422247505,1778763057000,-1077.82,0.00027386,2]
[422247498,1778763057000,-5896.07,0.00027156,2]
[422247480,1778763057000,-7078.40236706,0.000268,2]
[422247497,1778763057000,-7078.40236706,0.000271,2]
[422247496,1778763057000,-2570.744474,0.0002701,2]
[422247470,1778763057000,-1385.87,0.00026575,7]
[422247530,1778763057000,-241.5406053,0.00027397,7]
[422247471,1778763057000,-1089.97,0.00026575,7]
[422247474,1778763057000,-1386.56,0.00026575,7]
[422247472,1778763057000,-2035.22,0.00026575,7]
[422247473,1778763057000,-570.04,0.00026575,7]
[422247486,1778763057000,-152.0,0.00026929,10]
[422247481,1778763057000,-1000.0,0.00026805,2]
[422247483,1778763057000,-157.0,0.00026862,3]
[422247482,1778763057000,-150.0,0.00026849,2]
[422247485,1778763057000,-1000.0,0.00026915,2]
[422247484,1778763057000,-284.22,0.000269,7]
[422247491,1778763057000,-1996.92,0.00027,2]
[422247487,1778763057000,-500.0,0.00027,2]
[422247488,1778763057000,-49923.04,0.00027,2]
[422247495,1778763057000,-500.0,0.00027004,2]
[422247493,1778763057000,-1350.0,0.00027,10]
[422247502,1778763057000,-1077.82,0.000273,2]
[422247503,1778763057000,-1077.82,0.00027329,2]
[422247501,1778763057000,-7078.40236706,0.000273,2]
[422247492,1778763057000,-201.515,0.00027,30]
[422247494,1778763057000,-2000.0,0.00027,2]
[422247499,1778763057000,-594.0,0.00027205,4]
[422247489,1778763057000,-301.515,0.00027,2]
[422247490,1778763057000,-9984.61,0.00027,2]
[422247500,1778763057000,-1000.0,0.00027279,2]
[422247567,1778763058000,-151.0,0.00027397,2]
[422247572,1778763058000,-516.499835,0.00027397,2]
[422247569,1778763058000,-151.0,0.00027397,2]
[422247566,1778763058000,-151.0,0.00027397,2]
[422247557,1778763058000,-151.0,0.00027397,2]
[422247570,1778763058000,-151.0,0.00027397,2]
[422247565,1778763058000,-151.0,0.00027397,2]
[422247564,1778763058000,-151.0,0.00027397,2]
[422247573,1778763058000,-516.499835,0.00027397,2]
[422247575,1778763058000,-516.499835,0.00027397,2]
[422247563,1778763058000,-151.0,0.00027397,2]
[422247571,1778763058000,-282.484073,0.00027397,2]
[422247583,1778763058000,-516.499835,0.00027397,2]
[422247574,1778763058000,-516.499835,0.00027397,2]
[422247576,1778763058000,-516.499835,0.00027397,2]
[422247577,1778763058000,-516.499835,0.00027397,2]
[422247578,1778763058000,-516.499835,0.00027397,2]
[422247579,1778763058000,-516.499835,0.00027397,2]
[422247582,1778763058000,-516.499835,0.00027397,2]
[422247580,1778763058000,-516.499835,0.00027397,2]
[422247584,1778763058000,-516.499835,0.00027397,2]
[422247586,1778763058000,-516.499835,0.00027397,2]
[422247587,1778763058000,-516.499835,0.00027397,2]
[422247581,1778763058000,-516.499835,0.00027397,2]
[422247560,1778763058000,-151.0,0.00027397,2]
[422247568,1778763058000,-151.0,0.00027397,2]
[422247558,1778763058000,-151.0,0.00027397,2]
[422247543,1778763058000,-1590.484365,0.00027397,2]
[422247562,1778763058000,-151.0,0.00027397,2]
[422247585,1778763058000,-516.499835,0.00027397,2]
[422247531,1778763058000,-151.16892255,0.00027397,2]
[422247532,1778763058000,-526.27,0.00027397,2]
[422247536,1778763058000,-1590.484365,0.00027397,2]
[422247540,1778763058000,-1590.484365,0.00027397,2]
[422247533,1778763058000,-151.0,0.00027397,2]
[422247534,1778763058000,-247.56391,0.00027397,2]
[422247535,1778763058000,-1590.484365,0.00027397,2]
[422247538,1778763058000,-1590.484365,0.00027397,2]
[422247537,1778763058000,-1590.484365,0.00027397,2]
[422247539,1778763058000,-1590.484365,0.00027397,2]
[422247544,1778763058000,-1590.484365,0.00027397,2]
[422247559,1778763058000,-151.0,0.00027397,2]
[422247542,1778763058000,-1590.484365,0.00027397,2]
[422247541,1778763058000,-1590.484365,0.00027397,2]
[422247546,1778763058000,-1590.484365,0.00027397,2]
[422247551,1778763058000,-1590.484365,0.00027397,2]
[422247549,1778763058000,-1590.484365,0.00027397,2]
[422247552,1778763058000,-1590.484365,0.00027397,2]
[422247548,1778763058000,-1590.484365,0.00027397,2]
[422247547,1778763058000,-1590.484365,0.00027397,2]
[422247553,1778763058000,-1590.484365,0.00027397,2]
[422247554,1778763058000,-1590.484368,0.00027397,2]
[422247555,1778763058000,-1042.56,0.00027397,2]
[422247561,1778763058000,-151.0,0.00027397,2]
[422247556,1778763058000,-151.0,0.00027397,2]
[422247545,1778763058000,-1590.484365,0.00027397,2]
[422247588,1778763058000,-516.499835,0.00027397,2]
[422247550,1778763058000,-1590.484365,0.00027397,2]
[422247590,1778763058000,-516.499835,0.00027397,2]
[422247622,1778763058000,-1115.62838,0.00027397,2]
[422247623,1778763058000,-1115.62838,0.00027397,2]
[422247620,1778763058000,-1115.62838,0.00027397,2]
[422247619,1778763058000,-1115.62838,0.00027397,2]
[422247625,1778763058000,-1115.62838,0.00027397,2]
[422247633,1778763058000,-796.056374,0.00027397,2]
[422247628,1778763058000,-1115.62838,0.00027397,2]
[422247634,1778763058000,-796.056374,0.00027397,2]
[422247635,1778763058000,-796.056374,0.00027397,2]
[422247627,1778763058000,-1115.62838,0.00027397,2]
[422247629,1778763058000,-1115.62838,0.00027397,2]
[422247630,1778763058000,-1115.62838,0.00027397,2]
[422247624,1778763058000,-1115.62838,0.00027397,2]
[422247632,1778763058000,-1115.62838586,0.00027397,2]
[422247642,1778763058000,-151.0,0.00027397,2]
[422247646,1778763058000,-151.0,0.00027397,2]
[422247636,1778763058000,-796.056374,0.00027397,2]
[422247645,1778763058000,-796.056374,0.00027397,2]
[422247647,1778763058000,-796.056374,0.00027397,2]
[422247643,1778763058000,-796.056374,0.00027397,2]
[422247638,1778763058000,-796.056374,0.00027397,2]
[422247640,1778763058000,-796.056374,0.00027397,2]
[422247641,1778763058000,-796.056374,0.00027397,2]
[422247639,1778763058000,-151.0,0.00027397,2]
[422247644,1778763058000,-151.0,0.00027397,2]
[422247589,1778763058000,-516.499835,0.00027397,2]
[422247637,1778763058000,-796.056374,0.00027397,2]
[422247621,1778763058000,-1115.62838,0.00027397,2]
[422247631,1778763058000,-1115.62838,0.00027397,2]
[422247626,1778763058000,-1115.62838,0.00027397,2]
[422247591,1778763058000,-1464.95,0.00027397,2]
[422247617,1778763058000,-1115.62838,0.00027397,2]
[422247593,1778763058000,-3136.515946,0.00027397,2]
[422247592,1778763058000,-516.499839,0.00027397,2]
[422247601,1778763058000,-3136.515946,0.00027397,2]
[422247594,1778763058000,-3136.515946,0.00027397,2]
[422247600,1778763058000,-3136.515946,0.00027397,2]
[422247597,1778763058000,-3136.515946,0.00027397,2]
[422247595,1778763058000,-3136.515946,0.00027397,2]
[422247598,1778763058000,-3136.515946,0.00027397,2]
[422247602,1778763058000,-3136.515946,0.00027397,2]
[422247596,1778763058000,-3136.515946,0.00027397,2]
[422247603,1778763058000,-3136.515946,0.00027397,2]
[422247613,1778763058000,-1115.62838,0.00027397,2]
[422247599,1778763058000,-3136.515946,0.00027397,2]
[422247604,1778763058000,-3136.515946,0.00027397,2]
[422247614,1778763058000,-1115.62838,0.00027397,2]
[422247616,1778763058000,-1115.62838,0.00027397,2]
[422247615,1778763058000,-1115.62838,0.00027397,2]
[422247609,1778763058000,-3136.515946,0.00027397,2]
[422247610,1778763058000,-3136.515946,0.00027397,2]
[422247607,1778763058000,-3136.515946,0.00027397,2]
[422247605,1778763058000,-3136.515946,0.00027397,2]
[422247606,1778763058000,-3136.515946,0.00027397,2]
[422247611,1778763058000,-3136.515946,0.00027397,2]
[422247612,1778763058000,-3136.515947,0.00027397,2]
[422247618,1778763058000,-1115.62838,0.00027397,2]
[422247608,1778763058000,-3136.515946,0.00027397,2]
[422247686,1778763059000,-5194.02,0.000274,2]
[422247687,1778763059000,-5194.02,0.000274,2]
[422247689,1778763059000,-1077.82,0.00027443,2]
[422247684,1778763059000,-5194.02,0.000274,2]
[422247675,1778763059000,-201.03168222,0.00027397,7]
[422247673,1778763059000,-180.57898599,0.00027397,7]
[422247679,1778763059000,-4430.58,0.000274,14]
[422247677,1778763059000,-162.3,0.000274,7]
[422247688,1778763059000,-1077.82,0.00027414,2]
[422247676,1778763059000,-500.0,0.00027398,2]
[422247685,1778763059000,-5194.02,0.000274,2]
[422247692,1778763059000,-204.00030653,0.000275,2]
[422247697,1778763059000,-181.42902846,0.00027534,2]
[422247690,1778763059000,-3000.0,0.00027468,10]
[422247694,1778763059000,-1077.82,0.000275,2]
[422247691,1778763059000,-1077.82,0.00027471,2]
[422247696,1778763059000,-1223.0,0.00027519,2]
[422247695,1778763059000,-1270.0,0.00027519,2]
[422247707,1778763059000,-594.0,0.00027767,5]
[422247699,1778763059000,-206.8682,0.0002761,2]
[422247706,1778763059000,-18047.92,0.00027723,7]
[422247698,1778763059000,-151.19085705,0.00027534,2]
[422247701,1778763059000,-302.3817141,0.00027671,2]
[422247703,1778763059000,-200.0,0.00027671,2]
[422247678,1778763059000,-166.99033335,0.000274,120]
[422247693,1778763059000,-1000.0,0.000275,2]
[422247674,1778763059000,-151.20870207,0.00027397,7]
[422247648,1778763059000,-151.0,0.00027397,2]
[422247682,1778763059000,-1342.13,0.000274,7]
[422247704,1778763059000,-200.0,0.00027671,2]
[422247657,1778763059000,-796.056374,0.00027397,2]
[422247658,1778763059000,-796.056364,0.00027397,2]
[422247656,1778763059000,-796.056374,0.00027397,2]
[422247650,1778763059000,-299.605622,0.00027397,2]
[422247649,1778763059000,-796.056374,0.00027397,2]
[422247652,1778763059000,-796.056374,0.00027397,2]
[422247651,1778763059000,-796.056374,0.00027397,2]
[422247655,1778763059000,-796.056374,0.00027397,2]
[422247654,1778763059000,-796.056374,0.00027397,2]
[422247653,1778763059000,-796.056374,0.00027397,2]
[422247659,1778763059000,-300.0,0.00027397,2]
[422247660,1778763059000,-17214.76,0.00027397,10]
[422247661,1778763059000,-200.0,0.00027397,7]
[422247664,1778763059000,-14345.63,0.00027397,10]
[422247666,1778763059000,-150.0,0.00027397,2]
[422247663,1778763059000,-285.991963,0.00027397,7]
[422247662,1778763059000,-200.0,0.00027397,7]